[Event "20th Rochefort Chess Festival - Masters"]
[Site "Rochefort, France"]
[Date "2022.02.13"]
[Round "3.3"]
[White "Demuth, Adrien"]
[Black "Suarez Uriel, Adrian"]
[Result "1/2-1/2"]
[TimeControl "1h30 + [30'']"]
[WhiteElo "2489"]
[BlackElo "2348"]

1. d4 {[%clk 01:30:57]} {[%emt 00:00:02]} Nf6 {[%clk 01:24:51]} {[%emt
00:06:05]} 2. c4 {[%clk 01:31:15]} {[%emt 00:00:17]} g6 {[%clk 01:25:12]}
{[%emt 00:00:09]} 3. Nc3 {[%clk 01:31:30]} {[%emt 00:00:15]} d5 {[%clk
01:25:37]} {[%emt 00:00:05]} 4. Nf3 {[%clk 01:31:34]} {[%emt 00:00:26]} Bg7
{[%clk 01:26:02]} {[%emt 00:00:05]} 5. Bg5 {[%clk 01:31:50]} {[%emt 00:00:13]}
Ne4 {[%clk 01:26:26]} {[%emt 00:00:06]} 6. Bf4 {[%clk 01:32:16]} {[%emt
00:00:05]} Nxc3 {[%clk 01:26:45]} {[%emt 00:00:11]} 7. bxc3 {[%clk 01:32:41]}
{[%emt 00:00:06]} c5 {[%clk 01:27:10]} {[%emt 00:00:05]} 8. e3 {[%clk
01:32:49]} {[%emt 00:00:21]} O-O {[%clk 01:27:10]} {[%emt 00:00:30]} 9. cxd5
{[%clk 01:32:46]} {[%emt 00:00:33]} Qxd5 {[%clk 01:27:33]} {[%emt 00:00:06]} 10.
Be2 {[%clk 01:33:10]} {[%emt 00:00:06]} cxd4 {[%clk 01:27:32]} {[%emt
00:00:32]} 11. cxd4 {[%clk 01:33:34]} {[%emt 00:00:06]} Nc6 {[%clk 01:20:49]}
{[%emt 00:07:13]} 12. O-O {[%clk 01:33:24]} {[%emt 00:00:41]} Bf5 {[%clk
01:20:37]} {[%emt 00:00:42]} 13. Qa4 {[%clk 01:32:28]} {[%emt 00:01:26]} Qa5
{[%clk 01:21:01]} {[%emt 00:00:05]} 14. Qxa5 {[%clk 01:29:45]} {[%emt
00:03:14]} Nxa5 {[%clk 01:21:29]} {[%emt 00:00:02]} 15. Rfc1 {[%clk 01:29:07]}
{[%emt 00:01:08]} Rfc8 {[%clk 01:21:28]} {[%emt 00:00:31]} 16. Nd2 {[%clk
01:28:58]} {[%emt 00:00:39]} Rxc1+ {[%clk 01:15:56]} {[%emt 00:06:02]} 17. Rxc1
{[%clk 01:29:05]} {[%emt 00:00:23]} Rc8 {[%clk 01:16:25]} {[%emt 00:00:01]} 18.
Rxc8+ {[%clk 01:29:21]} {[%emt 00:00:14]} Bxc8 {[%clk 01:16:53]} {[%emt
00:00:01]} 19. Bf3 {[%clk 01:29:41]} {[%emt 00:00:10]} Bd7 {[%clk 01:07:22]}
{[%emt 00:10:01]} 20. Bb8 {[%clk 01:24:02]} {[%emt 00:06:09]} a6 {[%clk
01:00:57]} {[%emt 00:06:55]} 21. Bc7 {[%clk 01:23:44]} {[%emt 00:00:47]} Nc6
{[%clk 01:01:23]} {[%emt 00:00:04]} 22. Nb3 {[%clk 01:23:31]} {[%emt 00:00:43]}
Bf8 {[%clk 00:56:42]} {[%emt 00:05:11]} 23. Nc5 {[%clk 00:51:38]} {[%emt
00:32:23]} Bc8 {[%clk 00:57:06]} {[%emt 00:00:06]} 24. Na4 {[%clk 00:46:13]}
{[%emt 00:05:54]} Bd7 {[%clk 00:55:50]} {[%emt 00:01:47]} 25. Nc5 {[%clk
00:23:25]} {[%emt 00:23:18]} Bc8 {[%clk 00:56:08]} {[%emt 00:00:11]} 26. Kf1
{[%clk 00:17:29]} {[%emt 00:06:26]} e5 {[%clk 00:52:14]} {[%emt 00:04:24]} 27.
Bxc6 {[%clk 00:12:20]} {[%emt 00:05:39]} bxc6 {[%clk 00:52:25]} {[%emt
00:00:19]} 28. Bxe5 {[%clk 00:12:44]} {[%emt 00:00:06]} Bxc5 {[%clk 00:52:53]}
{[%emt 00:00:02]} 29. dxc5 {[%clk 00:13:10]} {[%emt 00:00:05]} Be6 {[%clk
00:53:16]} {[%emt 00:00:07]} 30. a3 {[%clk 00:13:32]} {[%emt 00:00:09]} Bc4+
{[%clk 00:53:30]} {[%emt 00:00:15]} 31. Ke1 {[%clk 00:12:48]} {[%emt 00:01:13]}
f5 {[%clk 00:53:57]} {[%emt 00:00:04]} 32. Kd2 {[%clk 00:10:28]} {[%emt
00:02:50]} Kf7 {[%clk 00:54:19]} {[%emt 00:00:07]} 33. Kc3 {[%clk 00:10:54]}
{[%emt 00:00:04]} Bf1 {[%clk 00:54:44]} {[%emt 00:00:05]} 34. g3 {[%clk
00:11:22]} {[%emt 00:00:03]} Ke6 {[%clk 00:55:09]} {[%emt 00:00:05]} 35. Kd4
{[%clk 00:11:50]} {[%emt 00:00:02]} Bg2 {[%clk 00:54:56]} {[%emt 00:00:43]} 36.
Bd6 {[%clk 00:11:28]} {[%emt 00:00:52]} g5 {[%clk 00:55:02]} {[%emt 00:00:24]}
37. g4 {[%clk 00:06:38]} {[%emt 00:05:20]} fxg4 {[%clk 00:55:16]} {[%emt
00:00:16]} 38. e4 {[%clk 00:07:00]} {[%emt 00:00:08]} Bf3 {[%clk 00:52:21]}
{[%emt 00:03:25]} 39. Bc7 {[%clk 00:07:21]} {[%emt 00:00:10]} Kd7 {[%clk
00:52:18]} {[%emt 00:00:32]} 40. Ba5 {[%clk 00:07:44]} {[%emt 00:00:06]} Ke6
{[%clk 00:52:44]} {[%emt 00:00:05]} 41. Bd8 {[%clk 00:08:10]} {[%emt 00:00:04]}
h6 {[%clk 00:53:09]} {[%emt 00:00:05]} 42. Bc7 {[%clk 00:08:34]} {[%emt
00:00:06]} Bg2 {[%clk 00:48:16]} {[%emt 00:05:22]} 43. Bd6 {[%clk 00:08:56]}
{[%emt 00:00:08]} Bf3 {[%clk 00:48:38]} {[%emt 00:00:09]} 44. Bf8 {[%clk
00:09:21]} {[%emt 00:00:05]} h5 {[%clk 00:49:04]} {[%emt 00:00:04]} 45. Bd6
{[%clk 00:09:43]} {[%emt 00:00:08]} a5 {[%clk 00:49:13]} {[%emt 00:00:21]} 46.
Bc7 {[%clk 00:09:13]} {[%emt 00:00:59]} a4 {[%clk 00:49:42]} {[%emt 00:00:01]}
47. Bd8 {[%clk 00:09:38]} {[%emt 00:00:05]} h4 {[%clk 00:50:10]} {[%emt
00:00:03]} 48. Bxg5 {[%clk 00:10:00]} {[%emt 00:00:07]} h3 {[%clk 00:50:38]}
{[%emt 00:00:02]} 49. Bf4 {[%clk 00:08:49]} {[%emt 00:01:41]} Bd1 {[%clk
00:45:16]} {[%emt 00:05:51]} 50. Bd2 {[%clk 00:08:12]} {[%emt 00:01:07]} Bf3
{[%clk 00:45:41]} {[%emt 00:00:05]} 51. Ke3 {[%clk 00:08:01]} {[%emt 00:00:41]}
Bd1 {[%clk 00:45:23]} {[%emt 00:00:48]} 52. Bc3 {[%clk 00:08:21]} {[%emt
00:00:10]} Bf3 {[%clk 00:45:44]} {[%emt 00:00:09]} 53. Ba5 {[%clk 00:04:46]}
{[%emt 00:04:06]} Ke5 {[%clk 00:46:04]} {[%emt 00:00:10]} 54. Bc7+ {[%clk
00:05:12]} {[%emt 00:00:04]} Ke6 {[%clk 00:46:31]} {[%emt 00:00:03]} 55. Kf4
{[%clk 00:05:23]} {[%emt 00:00:19]} Bd1 {[%clk 00:46:56]} {[%emt 00:00:04]} 56.
Bd6 {[%clk 00:02:20]} {[%emt 00:03:33]} 1/2-1/2

[Event "20th Rochefort Chess Festival - Masters"]
[Site "Rochefort, France"]
[Date "2022.02.13"]
[Round "3.5"]
[White "Lucas, Arthur"]
[Black "Martin Duque, Jesus"]
[Result "1/2-1/2"]
[TimeControl "1h30 + [30'']"]
[WhiteElo "2337"]
[BlackElo "2411"]

1. e4 {[%clk 01:26:50]} {[%emt 00:04:08]} c6 {[%clk 01:28:51]} {[%emt
00:01:53]} 2. Nc3 {[%clk 01:27:03]} {[%emt 00:00:34]} d5 {[%clk 01:29:14]}
{[%emt 00:00:07]} 3. Nf3 {[%clk 01:27:26]} {[%emt 00:00:06]} dxe4 {[%clk
01:29:35]} {[%emt 00:00:09]} 4. Nxe4 {[%clk 01:27:51]} {[%emt 00:00:05]} Nf6
{[%clk 01:29:58]} {[%emt 00:00:07]} 5. Qe2 {[%clk 01:28:16]} {[%emt 00:00:04]}
Nxe4 {[%clk 01:30:20]} {[%emt 00:00:08]} 6. Qxe4 {[%clk 01:28:43]} {[%emt
00:00:04]} Qa5 {[%clk 01:30:23]} {[%emt 00:00:25]} 7. c3 {[%clk 01:23:11]}
{[%emt 00:06:03]} Bf5 {[%clk 01:26:29]} {[%emt 00:04:24]} 8. Qf4 {[%clk
01:19:42]} {[%emt 00:03:59]} e6 {[%clk 01:25:18]} {[%emt 00:01:41]} 9. d4
{[%clk 01:18:21]} {[%emt 00:01:51]} Nd7 {[%clk 01:24:06]} {[%emt 00:01:42]} 10.
Be2 {[%clk 01:17:23]} {[%emt 00:01:28]} Be7 {[%clk 01:21:28]} {[%emt 00:03:08]}
11. O-O {[%clk 01:17:13]} {[%emt 00:00:40]} h6 {[%clk 01:11:22]} {[%emt
00:10:36]} 12. Qg3 {[%clk 01:13:48]} {[%emt 00:03:55]} O-O-O {[%clk 01:04:08]}
{[%emt 00:07:43]} 13. b4 {[%clk 01:03:07]} {[%emt 00:11:12]} Qd5 {[%clk
01:02:40]} {[%emt 00:01:59]} 14. Be3 {[%clk 00:55:06]} {[%emt 00:08:31]} g5
{[%clk 00:58:37]} {[%emt 00:04:32]} 15. c4 {[%clk 00:51:18]} {[%emt 00:04:19]}
Qd6 {[%clk 00:58:36]} {[%emt 00:00:31]} 16. c5 {[%clk 00:45:11]} {[%emt
00:06:37]} Qxg3 {[%clk 00:53:32]} {[%emt 00:05:33]} 17. fxg3 {[%clk 00:45:35]}
{[%emt 00:00:06]} g4 {[%clk 00:43:27]} {[%emt 00:10:35]} 18. Nh4 {[%clk
00:34:41]} {[%emt 00:11:24]} Bxh4 {[%clk 00:43:11]} {[%emt 00:00:47]} 19. gxh4
{[%clk 00:35:09]} {[%emt 00:00:02]} Nf6 {[%clk 00:43:13]} {[%emt 00:00:27]} 20.
a3 {[%clk 00:29:32]} {[%emt 00:06:09]} Nd5 {[%clk 00:43:10]} {[%emt 00:00:30]}
21. Bf2 {[%clk 00:29:08]} {[%emt 00:00:55]} Rhg8 {[%clk 00:42:15]} {[%emt
00:01:24]} 22. Rfe1 {[%clk 00:22:08]} {[%emt 00:07:31]} h5 {[%clk 00:36:45]}
{[%emt 00:06:01]} 23. Bc4 {[%clk 00:21:06]} {[%emt 00:01:32]} Nc3 {[%clk
00:35:49]} {[%emt 00:01:24]} 24. g3 {[%clk 00:17:17]} {[%emt 00:04:20]} Ne4
{[%clk 00:33:18]} {[%emt 00:03:01]} 25. Be3 {[%clk 00:17:12]} {[%emt 00:00:36]}
Nd2 {[%clk 00:32:55]} {[%emt 00:00:53]} 26. Bxd2 {[%clk 00:13:22]} {[%emt
00:04:20]} Rxd4 {[%clk 00:33:23]} {[%emt 00:00:02]} 27. Bxe6+ {[%clk 00:13:15]}
{[%emt 00:00:37]} fxe6 {[%clk 00:33:51]} {[%emt 00:00:02]} 28. Bg5 {[%clk
00:13:33]} {[%emt 00:00:12]} Be4 {[%clk 00:29:39]} {[%emt 00:04:42]} 29. Rad1
{[%clk 00:12:23]} {[%emt 00:01:41]} Rxd1 {[%clk 00:29:52]} {[%emt 00:00:17]} 30.
Rxd1 {[%clk 00:12:51]} {[%emt 00:00:02]} Rf8 {[%clk 00:30:04]} {[%emt
00:00:17]} 31. Bf4 {[%clk 00:12:35]} {[%emt 00:00:48]} e5 {[%clk 00:28:36]}
{[%emt 00:01:57]} 32. Bxe5 {[%clk 00:11:33]} {[%emt 00:01:33]} Rf3 {[%clk
00:29:04]} {[%emt 00:00:02]} 33. Bb2 {[%clk 00:00:56]} {[%emt 00:11:07]} Bd5
{[%clk 00:29:20]} {[%emt 00:00:13]} 34. Rf1 {[%clk 00:00:44]} {[%emt 00:00:43]}
Rb3 {[%clk 00:29:45]} {[%emt 00:00:05]} 35. Bc1 {[%clk 00:00:47]} {[%emt
00:00:27]} Kd7 {[%clk 00:30:01]} {[%emt 00:00:13]} 36. Re1 {[%clk 00:01:06]}
{[%emt 00:00:12]} b6 {[%clk 00:27:32]} {[%emt 00:03:00]} 37. Re3 {[%clk
00:01:01]} {[%emt 00:00:35]} Rb1 {[%clk 00:27:44]} {[%emt 00:00:17]} 38. Rc3
{[%clk 00:01:27]} {[%emt 00:00:04]} Ke6 {[%clk 00:27:11]} {[%emt 00:01:02]} 39.
Kf2 {[%clk 00:01:39]} {[%emt 00:00:19]} Kf5 {[%clk 00:27:32]} {[%emt 00:00:08]}
40. cxb6 {[%clk 00:00:54]} {[%emt 00:01:17]} axb6 {[%clk 00:28:01]} {[%emt
00:00:01]} 41. Ke3 {[%clk 00:01:07]} {[%emt 00:00:17]} Ra1 {[%clk 00:27:33]}
{[%emt 00:00:55]} 42. Rc2 {[%clk 00:00:44]} {[%emt 00:00:55]} Rb1 {[%clk
00:26:28]} {[%emt 00:01:33]} 43. Kd4 {[%clk 00:00:36]} {[%emt 00:00:40]} Rb3
{[%clk 00:25:46]} {[%emt 00:01:09]} 44. Rc3 {[%clk 00:00:43]} {[%emt 00:00:25]}
Rxc3 {[%clk 00:25:58]} {[%emt 00:00:18]} 45. Kxc3 {[%clk 00:01:09]} {[%emt
00:00:04]} b5 {[%clk 00:26:23]} {[%emt 00:00:05]} 46. Kd4 {[%clk 00:01:31]}
{[%emt 00:00:08]} Bh1 {[%clk 00:26:51]} {[%emt 00:00:02]} 47. Bd2 {[%clk
00:01:54]} {[%emt 00:00:07]} Bg2 {[%clk 00:27:19]} {[%emt 00:00:01]} 48. Bc1
{[%clk 00:02:19]} {[%emt 00:00:06]} Bh1 {[%clk 00:27:48]} {[%emt 00:00:01]} 49.
Bd2 {[%clk 00:02:44]} {[%emt 00:00:05]} 1/2-1/2

[Event "20th Rochefort Chess Festival - Masters"]
[Site "Rochefort, France"]
[Date "2022.02.13"]
[Round "3.1"]
[White "Bauer, Christian"]
[Black "Colin, Vincent"]
[Result "1/2-1/2"]
[TimeControl "1h30 + [30'']"]
[WhiteElo "2613"]
[BlackElo "2386"]

1. d4 {[%clk 01:30:45]} {[%emt 00:00:13]} Nf6 {[%clk 01:30:54]} {[%emt
00:00:06]} 2. Nf3 {[%clk 01:29:45]} {[%emt 00:01:30]} g6 {[%clk 01:30:47]}
{[%emt 00:00:37]} 3. Nc3 {[%clk 01:30:08]} {[%emt 00:00:06]} d5 {[%clk
01:31:03]} {[%emt 00:00:14]} 4. Bf4 {[%clk 01:30:34]} {[%emt 00:00:05]} Bg7
{[%clk 01:30:50]} {[%emt 00:00:43]} 5. Nb5 {[%clk 01:31:00]} {[%emt 00:00:05]}
Na6 {[%clk 01:31:07]} {[%emt 00:00:13]} 6. e3 {[%clk 01:31:25]} {[%emt
00:00:04]} Bg4 {[%clk 01:31:20]} {[%emt 00:00:17]} 7. h3 {[%clk 01:23:07]}
{[%emt 00:08:49]} Bxf3 {[%clk 01:29:02]} {[%emt 00:02:47]} 8. Qxf3 {[%clk
01:23:29]} {[%emt 00:00:08]} c6 {[%clk 01:28:14]} {[%emt 00:01:18]} 9. Nc3
{[%clk 01:23:47]} {[%emt 00:00:13]} Qa5 {[%clk 01:28:18]} {[%emt 00:00:25]} 10.
O-O-O {[%clk 01:16:29]} {[%emt 00:07:48]} O-O {[%clk 01:21:46]} {[%emt
00:07:02]} 11. Kb1 {[%clk 01:16:00]} {[%emt 00:01:00]} Nd7 {[%clk 01:20:05]}
{[%emt 00:02:11]} 12. e4 {[%clk 01:13:56]} {[%emt 00:02:34]} e6 {[%clk
01:14:37]} {[%emt 00:05:58]} 13. h4 {[%clk 01:10:23]} {[%emt 00:04:03]} c5
{[%clk 01:12:00]} {[%emt 00:03:07]} 14. Bd2 {[%clk 00:43:13]} {[%emt 00:27:40]}
cxd4 {[%clk 01:05:48]} {[%emt 00:06:42]} 15. Nxd5 {[%clk 00:43:35]} {[%emt
00:00:09]} Qd8 {[%clk 01:04:31]} {[%emt 00:01:46]} 16. Nf4 {[%clk 00:38:57]}
{[%emt 00:05:09]} Ne5 {[%clk 01:03:10]} {[%emt 00:01:49]} 17. Qa3 {[%clk
00:35:26]} {[%emt 00:04:02]} Qc7 {[%clk 00:59:39]} {[%emt 00:04:00]} 18. Qa5
{[%clk 00:32:31]} {[%emt 00:03:27]} Nc4 {[%clk 00:54:02]} {[%emt 00:06:07]} 19.
Qxc7 {[%clk 00:29:46]} {[%emt 00:03:15]} Nxd2+ {[%clk 00:51:48]} {[%emt
00:02:44]} 20. Rxd2 {[%clk 00:30:13]} {[%emt 00:00:04]} Nxc7 {[%clk 00:52:09]}
{[%emt 00:00:08]} 21. Nd3 {[%clk 00:30:42]} {[%emt 00:00:02]} e5 {[%clk
00:48:15]} {[%emt 00:04:23]} 22. g3 {[%clk 00:30:06]} {[%emt 00:01:05]} h5
{[%clk 00:44:38]} {[%emt 00:04:08]} 23. f4 {[%clk 00:26:54]} {[%emt 00:03:42]}
exf4 {[%clk 00:43:53]} {[%emt 00:01:15]} 24. gxf4 {[%clk 00:27:16]} {[%emt
00:00:08]} Rfe8 {[%clk 00:43:51]} {[%emt 00:00:32]} 25. Bg2 {[%clk 00:27:18]}
{[%emt 00:00:28]} b6 {[%clk 00:39:40]} {[%emt 00:04:42]} 26. e5 {[%clk
00:17:56]} {[%emt 00:09:52]} Rad8 {[%clk 00:39:18]} {[%emt 00:00:50]} 27. Rg1
{[%clk 00:14:08]} {[%emt 00:04:19]} Kh7 {[%clk 00:36:27]} {[%emt 00:03:21]} 28.
Be4 {[%clk 00:05:04]} {[%emt 00:09:34]} Nd5 {[%clk 00:29:32]} {[%emt 00:07:25]}
29. f5 {[%clk 00:04:24]} {[%emt 00:01:11]} gxf5 {[%clk 00:27:00]} {[%emt
00:03:02]} 30. Bxf5+ {[%clk 00:04:53]} Kh6 {[%clk 00:25:37]} {[%emt 00:01:53]}
31. e6 {[%clk 00:04:08]} {[%emt 00:01:15]} fxe6 {[%clk 00:25:28]} {[%emt
00:00:39]} 32. Be4 {[%clk 00:02:33]} {[%emt 00:02:05]} Ne7 {[%clk 00:24:25]}
{[%emt 00:01:33]} 33. Nf4 {[%clk 00:01:38]} {[%emt 00:01:26]} Bf6 {[%clk
00:18:40]} {[%emt 00:06:14]} 34. Nxe6 {[%clk 00:02:04]} {[%emt 00:00:04]} Rd6
{[%clk 00:18:24]} {[%emt 00:00:46]} 35. Nc7 {[%clk 00:01:54]} {[%emt 00:00:40]}
Rg8 {[%clk 00:17:47]} {[%emt 00:01:07]} 36. Rxg8 {[%clk 00:01:58]} {[%emt
00:00:26]} Nxg8 {[%clk 00:18:09]} {[%emt 00:00:08]} 37. c3 {[%clk 00:01:57]}
{[%emt 00:01:02]} Bxh4 {[%clk 00:16:05]} {[%emt 00:03:03]} 38. cxd4 {[%clk
00:02:27]} {[%emt 00:00:01]} Nf6 {[%clk 00:15:55]} {[%emt 00:00:40]} 1/2-1/2

[Event "20th Rochefort Chess Festival - Masters"]
[Site "Rochefort, France"]
[Date "2022.02.13"]
[Round "3.2"]
[White "Philippe, Christophe"]
[Black "Galperin, Platon"]
[Result "0-1"]
[TimeControl "1h30 + [30'']"]
[WhiteElo "2375"]
[BlackElo "2522"]

1. e4 {[%clk 01:30:57]} c5 {[%clk 01:27:57]} {[%emt 00:03:04]} 2. Nf3 {[%clk
01:31:06]} {[%emt 00:00:20]} Nc6 {[%clk 01:28:15]} {[%emt 00:00:13]} 3. d4
{[%clk 01:30:58]} {[%emt 00:00:38]} cxd4 {[%clk 01:28:38]} {[%emt 00:00:07]} 4.
Nxd4 {[%clk 01:31:24]} {[%emt 00:00:04]} Nf6 {[%clk 01:29:02]} {[%emt
00:00:06]} 5. Nc3 {[%clk 01:31:48]} {[%emt 00:00:06]} d6 {[%clk 01:29:29]}
{[%emt 00:00:03]} 6. Be2 {[%clk 01:30:03]} {[%emt 00:02:15]} e6 {[%clk
01:27:45]} {[%emt 00:02:14]} 7. O-O {[%clk 01:30:08]} {[%emt 00:00:23]} Be7
{[%clk 01:28:11]} {[%emt 00:00:05]} 8. Be3 {[%clk 01:27:32]} {[%emt 00:03:06]}
O-O {[%clk 01:28:32]} {[%emt 00:00:09]} 9. Kh1 {[%clk 01:25:50]} {[%emt
00:02:12]} Bd7 {[%clk 01:13:47]} {[%emt 00:15:15]} 10. Ndb5 {[%clk 01:20:47]}
{[%emt 00:05:33]} Qb8 {[%clk 01:13:38]} {[%emt 00:00:40]} 11. Bf4 {[%clk
01:20:16]} {[%emt 00:01:01]} Ne5 {[%clk 01:10:54]} {[%emt 00:03:13]} 12. Bg5
{[%clk 01:20:22]} {[%emt 00:00:24]} a6 {[%clk 00:45:27]} {[%emt 00:25:57]} 13.
f4 {[%clk 01:11:28]} {[%emt 00:09:23]} Ng6 {[%clk 00:45:42]} {[%emt 00:00:16]}
14. Bxf6 {[%emt 00:14:09]} Bxf6 {[%clk 00:43:33]} {[%emt 00:00:02]} 15. Nxd6
{[%clk 00:58:09]} {[%emt 00:02:48]} Bc6 {[%clk 00:42:46]} {[%emt 00:01:17]} 16.
e5 {[%clk 00:34:36]} {[%emt 00:24:03]} Nxf4 {[%clk 00:41:47]} {[%emt 00:01:29]}
17. exf6 {[%clk 00:31:31]} {[%emt 00:03:35]} Bxg2+ {[%clk 00:39:14]} {[%emt
00:03:02]} 18. Kg1 {[%clk 00:31:57]} {[%emt 00:00:05]} Qa7+ {[%clk 00:25:23]}
{[%emt 00:14:20]} 19. Rf2 {[%clk 00:32:23]} {[%emt 00:00:04]} Rad8 {[%clk
00:14:06]} {[%emt 00:11:47]} 20. Qd2 {[%clk 00:30:20]} {[%emt 00:02:33]} e5
{[%clk 00:13:07]} {[%emt 00:01:29]} 21. Rd1 {[%clk 00:25:19]} {[%emt 00:05:31]}
gxf6 {[%clk 00:08:04]} {[%emt 00:05:33]} 22. Qe1 {[%clk 00:20:18]} {[%emt
00:05:30]} b5 {[%clk 00:06:46]} {[%emt 00:01:49]} 23. Bf1 {[%clk 00:12:49]}
{[%emt 00:07:59]} Bf3 {[%clk 00:06:10]} {[%emt 00:01:07]} 24. Rdd2 {[%clk
00:13:04]} {[%emt 00:00:15]} Kh8 {[%clk 00:01:03]} {[%emt 00:05:36]} 25. h3
{[%clk 00:12:57]} {[%emt 00:00:37]} b4 {[%clk 00:00:59]} {[%emt 00:00:36]} 26.
Nce4 {[%clk 00:11:17]} {[%emt 00:02:09]} Rg8+ {[%clk 00:00:39]} {[%emt
00:00:50]} 27. Kh2 {[%clk 00:11:18]} {[%emt 00:00:29]} f5 {[%clk 00:00:32]}
{[%emt 00:00:37]} 28. Nf6 {[%clk 00:07:32]} {[%emt 00:04:16]} e4 {[%clk
00:00:41]} {[%emt 00:00:21]} 29. Nxg8 {[%clk 00:06:54]} {[%emt 00:01:08]} Rxg8
{[%clk 00:01:09]} {[%emt 00:00:02]} 30. Bc4 {[%clk 00:05:31]} {[%emt 00:01:53]}
Rg6 {[%clk 00:00:31]} {[%emt 00:01:08]} 31. Nxf7+ {[%clk 00:02:11]} {[%emt
00:03:50]} Kg7 {[%clk 00:00:53]} {[%emt 00:00:07]} 32. Ne5 {[%clk 00:01:05]}
{[%emt 00:01:36]} Qb8 {[%clk 00:01:23]} {[%emt 00:00:01]} 33. Rd7+ {[%clk
00:00:44]} {[%emt 00:00:50]} Kh6 {[%clk 00:01:18]} {[%emt 00:00:35]} 34. Qe3
{[%clk 00:00:37]} {[%emt 00:00:37]} Qxe5 {[%clk 00:01:16]} {[%emt 00:00:31]} 35.
Rxf3 {[%clk 00:00:58]} {[%emt 00:00:10]} Kg5 {[%clk 00:01:31]} {[%emt
00:00:15]} 36. Rd1 {[%clk 00:00:42]} {[%emt 00:00:46]} Kh5 {[%clk 00:00:31]}
{[%emt 00:01:30]} 37. Qxf4 {[%emt 00:00:43]} 0-1


[ePGN "0.1;DGT LiveChess/2.2.5"]

[Event "20th Rochefort Chess Festival - Masters"]
[Site "Rochefort, France"]
[Date "2022.02.14"]
[Round "4.1"]
[White "Galperin, Platon"]
[Black "Duboue, Peio"]
[Result "1/2-1/2"]
[TimeControl "1h30 + [30'']"]
[WhiteElo "2522"]
[BlackElo "2412"]

1. c4 {[%clk 01:16:16]} {[%emt 00:14:43]} e5 {[%clk 01:30:50]} {[%emt
00:00:11]} 2. Nc3 {[%clk 01:16:39]} {[%emt 00:00:07]} Nf6 {[%clk 01:31:14]}
{[%emt 00:00:05]} 3. Nf3 {[%clk 01:17:04]} {[%emt 00:00:05]} Nc6 {[%clk
01:31:40]} {[%emt 00:00:04]} 4. e3 {[%clk 01:17:31]} {[%emt 00:00:04]} Be7
{[%clk 01:31:45]} {[%emt 00:00:24]} 5. Qb3 {[%clk 01:17:45]} {[%emt 00:00:16]}
O-O {[%clk 01:31:54]} {[%emt 00:00:20]} 6. Be2 {[%clk 01:18:10]} {[%emt
00:00:05]} b6 {[%clk 01:31:32]} {[%emt 00:00:53]} 7. O-O {[%clk 01:18:21]}
{[%emt 00:00:19]} Bb7 {[%clk 01:31:59]} {[%emt 00:00:03]} 8. a3 {[%clk
01:14:06]} {[%emt 00:04:45]} Re8 {[%clk 01:31:21]} {[%emt 00:01:07]} 9. d3
{[%emt 00:00:06]} Bf8 10. Rd1 d5 11. cxd5 Na5 12. Qc2 Nxd5 13. b4 Nc6 14. Bb2
a6 15. Rac1 {[%clk 01:14:30]} Rc8 {[%clk 01:12:17]} {[%emt 00:29:57]} 16. d4
{[%clk 00:33:55]} {[%emt 00:36:42]} Nxc3 {[%clk 01:04:58]} {[%emt 00:07:49]} 17.
Bxc3 {[%clk 00:32:09]} {[%emt 00:02:16]} exd4 {[%clk 01:01:47]} {[%emt
00:03:41]} 18. Bc4 {[%clk 00:19:13]} {[%emt 00:13:25]} Bd6 {[%clk 00:55:56]}
{[%emt 00:06:22]} 19. exd4 {[%clk 00:18:27]} {[%emt 00:01:17]} Qf6 {[%clk
00:46:52]} {[%emt 00:09:34]} 20. b5 {[%clk 00:15:31]} {[%emt 00:03:27]} Nb4
{[%clk 00:21:51]} {[%emt 00:25:30]} 21. Bxb4 {[%clk 00:15:51]} {[%emt
00:00:10]} Bxf3 {[%clk 00:22:18]} {[%emt 00:00:03]} 22. gxf3 {[%clk 00:16:04]}
{[%emt 00:00:17]} Bxh2+ {[%clk 00:15:29]} {[%emt 00:07:19]} 23. Kg2 {[%clk
00:12:15]} {[%emt 00:04:19]} Qg5+ {[%clk 00:14:12]} {[%emt 00:01:46]} 24. Kxh2
{[%clk 00:12:40]} {[%emt 00:00:05]} Qh5+ {[%clk 00:14:37]} {[%emt 00:00:06]} 25.
Kg2 {[%clk 00:13:04]} {[%emt 00:00:06]} Qg5+ {[%clk 00:15:03]} {[%emt
00:00:04]} 26. Kh2 {[%clk 00:13:26]} {[%emt 00:00:07]} Qh5+ {[%clk 00:15:30]}
{[%emt 00:00:03]} 27. Kg1 {[%clk 00:13:49]} {[%emt 00:00:07]} Qg5+ {[%clk
00:15:58]} {[%emt 00:00:02]} 28. Kf1 {[%clk 00:14:13]} {[%emt 00:00:06]} Qh5
{[%clk 00:16:25]} {[%emt 00:00:03]} 1/2-1/2